bitfinex-derivatives/quotes_BTCF0:USTF0_20250811
["timestamp","ask_amount","ask_price","bid_price","bid_amount"]
[1754891347263,2.18482704,121790.0,121780.0,0.25519595]
[1754891347657,2.93730704,121790.0,121780.0,0.25519595]
[1754891348467,2.93726704,121790.0,121780.0,0.25519595]
[1754891348667,2.18482704,121790.0,121780.0,0.25519595]
[1754891348863,2.18482704,121790.0,121780.0,0.52347595]
[1754891349058,2.93718704,121790.0,121780.0,0.20559595]
[1754891349258,2.93714704,121790.0,121780.0,0.25245595]
[1754891351371,2.93714704,121790.0,121780.0,0.48827293]
[1754891352666,2.18482704,121790.0,121780.0,0.65508293]
[1754891352865,2.18482704,121790.0,121780.0,0.87691293]
[1754891353062,2.89038704,121790.0,121780.0,0.87691293]
[1754891353269,2.93682704,121790.0,121780.0,0.64109595]
[1754891353467,2.18494704,121790.0,121780.0,0.64109595]
[1754891353677,2.93698704,121790.0,121780.0,0.64109595]
[1754891357571,1.8473329,121790.0,121780.0,0.64109595]
[1754891357774,2.89034704,121790.0,121780.0,0.64109595]
[1754891357975,2.93674704,121790.0,121780.0,0.64109595]
[1754891358178,2.18494704,121790.0,121780.0,0.64109595]
[1754891358381,2.93674704,121790.0,121780.0,0.64109595]
[1754891359174,2.18494704,121790.0,121780.0,0.64109595]
[1754891359382,2.18494704,121790.0,121780.0,0.87691293]
[1754891359572,2.93658704,121790.0,121780.0,0.44141293]
[1754891360478,2.18494704,121790.0,121780.0,0.44141293]
[1754891360667,2.93646704,121790.0,121780.0,0.44141293]
[1754891361469,2.93646704,121790.0,121780.0,0.20559595]
[1754891362079,2.93642704,121790.0,121780.0,0.20559595]
[1754891362779,2.18494704,121790.0,121780.0,0.20559595]
[1754891362980,2.93678704,121790.0,121780.0,0.20559595]
[1754891363483,2.93678704,121790.0,121780.0,0.44141293]
[1754891364491,2.93682704,121790.0,121780.0,0.44141293]
[1754891365381,2.18494704,121790.0,121780.0,0.44141293]
[1754891365680,2.93682704,121790.0,121780.0,0.48827293]
[1754891365877,2.93682704,121790.0,121780.0,0.60926293]
[1754891366382,2.93682704,121790.0,121780.0,0.53472293]
[1754891367486,2.93682704,121790.0,121780.0,0.29890595]
[1754891370583,2.6456529,121790.0,121780.0,0.29890595]
[1754891370778,2.18494704,121790.0,121780.0,0.59423595]
[1754891370983,2.18494704,121790.0,121780.0,0.64109595]
[1754891371380,2.93662704,121790.0,121780.0,0.64109595]
[1754891371782,2.18494704,121790.0,121780.0,0.64109595]
[1754891372382,2.93654704,121790.0,121780.0,0.64109595]
[1754891372787,2.18494704,121790.0,121780.0,0.64109595]
[1754891373086,2.93642704,121790.0,121780.0,0.64109595]
[1754891373289,2.18494704,121790.0,121780.0,0.64109595]
[1754891373488,2.93638704,121790.0,121780.0,0.64109595]
[1754891373789,2.18494704,121790.0,121780.0,0.64109595]
[1754891374085,2.93642704,121790.0,121780.0,0.64109595]
[1754891375585,2.18494704,121790.0,121780.0,0.64109595]
[1754891375984,2.93630704,121790.0,121780.0,0.64109595]
[1754891376189,2.93630704,121790.0,121780.0,0.87747384]
[1754891378193,2.18494704,121790.0,121780.0,0.64109595]
[1754891378690,2.93634704,121790.0,121780.0,0.87747611]
[1754891379392,2.93630704,121790.0,121780.0,0.87747611]
[1754891379790,2.18494704,121790.0,121780.0,0.87747611]
[1754891379993,2.93622704,121790.0,121780.0,0.87747611]
[1754891380291,2.18494704,121790.0,121780.0,0.87747611]
[1754891380494,2.93618704,121790.0,121780.0,0.64109595]
[1754891381291,2.18494704,121790.0,121780.0,0.64109595]
[1754891381489,2.93606704,121790.0,121780.0,0.64109595]
[1754891381794,2.18494704,121790.0,121780.0,0.64109595]
[1754891381994,2.93602704,121790.0,121780.0,0.64109595]
[1754891382294,2.18494704,121790.0,121780.0,0.64109595]
[1754891382498,2.93798704,121790.0,121780.0,0.64109595]
[1754891383089,2.93698704,121790.0,121780.0,0.64109595]
[1754891383384,2.93994704,121790.0,121780.0,0.64109595]
[1754891383793,2.18894704,121790.0,121780.0,0.64109595]
[1754891383986,2.93982704,121790.0,121780.0,0.64109595]
[1754891384596,2.18894704,121790.0,121780.0,0.64109595]
[1754891384801,2.14250704,121790.0,121780.0,0.64109595]
[1754891385195,2.89342704,121790.0,121780.0,0.64109595]
[1754891385492,2.14250704,121790.0,121780.0,0.64109595]
[1754891385700,2.89346704,121790.0,121780.0,0.64109595]
[1754891385996,2.89338704,121790.0,121780.0,0.64109595]
[1754891386386,2.94002704,121790.0,121780.0,0.64109595]
[1754891386590,2.93998704,121790.0,121780.0,0.64109595]
[1754891386998,2.18914704,121790.0,121780.0,0.64109595]
[1754891387297,2.93990704,121790.0,121780.0,0.64109595]
[1754891387599,2.14250704,121790.0,121780.0,0.64109595]
[1754891387797,2.6020529,121790.0,121780.0,0.64109595]
[1754891387998,2.14250704,121790.0,121780.0,0.64109595]
[1754891388202,2.89318704,121790.0,121780.0,0.64109595]
[1754891388698,2.93982704,121790.0,121780.0,0.87747611]
[1754891389093,2.18914704,121790.0,121780.0,0.87747611]
[1754891389502,2.93966704,121790.0,121780.0,0.87747611]
[1754891390002,2.18914704,121790.0,121780.0,0.87747611]
[1754891390195,2.93962704,121790.0,121780.0,0.87747611]
[1754891390499,2.93958704,121790.0,121780.0,0.87747611]
[1754891390894,2.93950704,121790.0,121780.0,0.87747611]
[1754891391302,2.18914704,121790.0,121780.0,0.87747611]
[1754891391500,2.93950704,121790.0,121780.0,0.87747611]
[1754891392101,2.13211704,121790.0,121780.0,0.87747611]
[1754891392299,2.88247704,121790.0,121780.0,0.87747611]
[1754891392500,2.92911704,121790.0,121780.0,0.87747611]
[1754891394702,2.92911704,121790.0,121780.0,0.64109595]
[1754891395506,2.17875704,121790.0,121780.0,0.64109595]
[1754891395697,2.92867704,121790.0,121780.0,0.64109595]
[1754891397598,2.92867704,121790.0,121780.0,0.72321565]
[1754891397798,2.92867704,121790.0,121780.0,0.64109595]
[1754891398600,2.17875704,121790.0,121780.0,0.64109595]
[1754891399002,2.92859704,121790.0,121780.0,0.64109595]
[1754891401105,2.17875704,121790.0,121780.0,0.64109595]
[1754891401304,2.92859704,121790.0,121780.0,0.64109595]
[1754891401800,2.17875704,121790.0,121780.0,0.64109595]
[1754891402006,2.92859704,121790.0,121780.0,0.64109595]
[1754891402206,2.92859704,121790.0,121780.0,0.20559595]
[1754891402601,2.17875704,121790.0,121780.0,0.20559595]
[1754891402908,2.92859704,121790.0,121780.0,0.25350595]
[1754891404194,2.17875704,121790.0,121780.0,0.25350595]
[1754891404605,2.92859704,121790.0,121780.0,0.25350595]
[1754891405512,2.92859704,121790.0,121780.0,0.33201595]
[1754891405810,2.92859704,121790.0,121780.0,0.54510595]
[1754891405811,2.17875704,121790.0,121780.0,0.54510595]
[1754891406107,2.17875704,121790.0,121780.0,0.63453595]
[1754891406108,2.92859704,121790.0,121780.0,0.63453595]
[1754891406808,2.17875704,121790.0,121780.0,0.62393595]
[1754891407007,2.17875704,121790.0,121780.0,0.42144595]
[1754891407208,2.17875704,121790.0,121780.0,0.62393595]
[1754891407507,2.92859704,121790.0,121780.0,0.62393595]
[1754891408208,2.92855704,121790.0,121780.0,0.62393595]
[1754891408412,2.17875704,121790.0,121780.0,0.70605565]
[1754891408706,2.92855704,121790.0,121780.0,0.70605565]
[1754891409102,2.17875704,121790.0,121780.0,0.70605565]
[1754891409498,2.92855704,121790.0,121780.0,0.70605565]
[1754891410009,2.92655704,121790.0,121780.0,0.70605565]
[1754891410308,1.8399429,121790.0,121780.0,0.99722979]
[1754891410510,1.7089929,121790.0,121780.0,1.08728295]
[1754891410710,2.0999929,121790.0,121780.0,1.08728295]
[1754891410915,1.3491929,121790.0,121780.0,1.08728295]
[1754891411109,2.0979929,121790.0,121780.0,1.08728295]
[1754891411408,2.2228829,121790.0,121780.0,1.32352553]
[1754891411614,1.4730829,121790.0,121780.0,1.32352553]
[1754891411996,2.2218829,121790.0,121780.0,1.32352553]
[1754891412704,1.13652,121790.0,121780.0,1.03235139]
[1754891412907,1.12567044,121790.0,121780.0,1.84854952]
[1754891413306,1.87547044,121790.0,121780.0,1.61230694]
[1754891413811,1.87547044,121790.0,121780.0,2.11230694]
[1754891414010,1.95658344,121790.0,121780.0,2.11230694]
[1754891414211,1.95658344,121790.0,121780.0,2.11430694]
[1754891414608,1.20678344,121790.0,121780.0,2.11430694]
[1754891415109,1.95654344,121790.0,121780.0,2.11430694]
[1754891415510,2.07943344,121790.0,121780.0,2.11430694]
[1754891417708,2.07943344,121790.0,121780.0,1.95008295]
[1754891418214,1.32967344,121790.0,121780.0,1.95008295]
[1754891418515,2.07939344,121790.0,121780.0,1.95008295]
[1754891419210,1.32967344,121790.0,121780.0,1.95008295]
[1754891419509,2.07939344,121790.0,121780.0,1.95008295]
[1754891419713,1.99728044,121790.0,121780.0,1.95008295]
[1754891419914,2.07939334,121790.0,121780.0,1.95008295]
[1754891420116,1.32967334,121790.0,121780.0,1.95008295]
[1754891420311,1.95646334,121790.0,121780.0,1.95008295]
[1754891421013,1.87435044,121790.0,121780.0,1.95008295]
[1754891421215,0.58398321,121800.0,121790.0,0.5038329]
[1754891421509,1.33366321,121800.0,121790.0,0.71654791]
[1754891421715,1.38103321,121800.0,121790.0,0.71654791]
[1754891421915,1.38103321,121800.0,121790.0,0.79865982]
[1754891422416,1.38103321,121800.0,121790.0,1.29865982]
[1754891423716,1.38103321,121800.0,121790.0,1.53449633]
[1754891423918,1.38203321,121800.0,121790.0,1.53449633]
[1754891424415,1.29992031,121800.0,121790.0,1.53449633]
[1754891425131,0.50287031,121800.0,121790.0,1.53449633]
[1754891425528,1.25255031,121800.0,121790.0,1.53449633]
[1754891425723,1.25255031,121800.0,121790.0,1.29865982]
[1754891426529,1.29988031,121800.0,121790.0,1.29865982]
[1754891428033,0.55024031,121800.0,121790.0,1.29865982]
[1754891428332,0.84141445,121800.0,121790.0,1.29865982]
[1754891428533,1.59105445,121800.0,121790.0,1.29865982]
[1754891429036,1.29988031,121800.0,121790.0,1.29865982]
[1754891430134,1.29988031,121800.0,121790.0,1.53440059]
[1754891432135,1.62740836,121800.0,121790.0,1.62618787]
[1754891433639,1.62740836,121800.0,121790.0,1.29865982]
[1754891433840,1.62740836,121800.0,121790.0,1.62618787]
[1754891434235,1.62740836,121800.0,121790.0,1.29865982]
[1754891437326,0.87776836,121800.0,121790.0,1.29865982]
[1754891437532,1.62736836,121800.0,121790.0,1.29865982]
[1754891438246,1.62736836,121800.0,121790.0,1.62618787]
[1754891441338,0.87776836,121800.0,121790.0,1.62618787]
[1754891441536,1.62736836,121800.0,121790.0,1.62618787]
[1754891442137,1.62736836,121800.0,121790.0,1.86192864]
[1754891442338,0.87776836,121800.0,121790.0,1.86192864]
[1754891442538,1.62736836,121800.0,121790.0,1.86192864]
[1754891443245,0.87776836,121800.0,121790.0,1.86192864]
[1754891443442,1.62736836,121800.0,121790.0,1.86192864]
[1754891444240,0.4428996,121810.0,121800.0,0.5039362]
[1754891444241,0.2463143,121810.0,121800.0,0.5039362]
[1754891444441,1.2332143,121810.0,121800.0,0.83146425]
[1754891444642,1.60680235,121810.0,121800.0,1.04357874]
[1754891444840,1.60680235,121810.0,121800.0,1.12568391]
[1754891445435,1.47863615,121810.0,121800.0,1.12568391]
[1754891445634,1.47963615,121810.0,121800.0,1.12568391]
[1754891448037,0.51086606,121840.0,121830.0,1.49306661]
[1754891448241,0.004,121840.0,121830.0,2.18145937]
[1754891448737,0.75356,121840.0,121830.0,2.18145937]
[1754891449233,0.75856,121840.0,121830.0,2.18145937]
[1754891449434,0.009,121840.0,121830.0,2.74683571]
[1754891449637,0.004,121840.0,121830.0,2.74683571]
[1754891449946,0.02343191,121850.0,121840.0,0.3755392]
[1754891450237,0.77291191,121850.0,121840.0,0.8647092]
[1754891450443,0.74948,121850.0,121840.0,1.37413137]
[1754891450742,0.74948,121850.0,121840.0,1.45620285]
[1754891451242,0.7732172,121850.0,121840.0,1.45620285]
[1754891451441,0.7732172,121850.0,121840.0,1.95620285]
[1754891451642,0.7732172,121850.0,121840.0,2.21900285]
[1754891451841,0.74948,121850.0,121840.0,2.22000285]
[1754891452337,1.5732533,121860.0,121840.0,2.38615725]
[1754891452646,1.2985012,121860.0,121850.0,0.86476209]
[1754891452839,1.9657893,121860.0,121850.0,0.86476209]
[1754891453143,1.9657893,121860.0,121850.0,1.36650915]
[1754891453144,1.98854759,121860.0,121850.0,1.36650915]
[1754891453340,1.98854759,121860.0,121850.0,1.44858063]
[1754891453540,1.23918759,121860.0,121850.0,1.44858063]
[1754891453740,0.2748282,121870.0,121850.0,1.61272163]
[1754891453939,8.62e-05,121870.0,121860.0,1.15547566]
[1754891454146,0.77296741,121870.0,121860.0,1.15547566]
[1754891454337,0.7494462,121870.0,121860.0,1.36898281]
[1754891454538,0.7494462,121870.0,121860.0,1.45104082]
[1754891455242,0.8674262,121870.0,121860.0,1.45104082]
[1754891455941,0.89090329,121870.0,121860.0,1.45104082]
[1754891456540,8.62e-05,121870.0,121860.0,1.71384082]
[1754891456736,8.62e-05,121870.0,121860.0,1.71584082]
[1754891456937,0.7493662,121870.0,121860.0,1.71584082]
[1754891457144,8.62e-05,121870.0,121860.0,1.71584082]
[1754891457342,0.8673462,121870.0,121860.0,1.71584082]
[1754891457544,0.1180662,121870.0,121860.0,1.71584082]
[1754891457844,0.9494052,121870.0,121860.0,2.21584082]
[1754891458346,0.8673462,121870.0,121860.0,2.21584082]
[1754891458541,0.1180662,121870.0,121860.0,2.21584082]
[1754891458744,0.9493252,121870.0,121860.0,2.21584082]
[1754891458943,1.0240252,121870.0,121860.0,2.21584082]
[1754891459340,0.2748252,121870.0,121860.0,2.21584082]
[1754891459541,1.04727685,121870.0,121860.0,2.21584082]
[1754891461051,1.21255685,121870.0,121860.0,2.21584082]
[1754891462447,1.25861685,121870.0,121860.0,2.21584082]
[1754891463651,1.21255685,121870.0,121860.0,2.21584082]
[1754891466644,0.38129785,121870.0,121860.0,2.21584082]
[1754891466850,0.46335695,121870.0,121860.0,2.21584082]
[1754891467049,1.21243695,121870.0,121860.0,2.21584082]
[1754891467251,0.46335695,121870.0,121860.0,2.21584082]
[1754891467452,1.21243695,121870.0,121860.0,2.21584082]
[1754891467851,1.13033785,121870.0,121860.0,2.21584082]
[1754891468054,0.46335695,121870.0,121860.0,2.21584082]
[1754891468354,1.21239695,121870.0,121860.0,2.21584082]
[1754891468542,1.13033785,121870.0,121860.0,2.21584082]
[1754891468955,1.05563785,121870.0,121860.0,2.21584082]
[1754891469151,0.30659785,121870.0,121860.0,2.21584082]
[1754891469353,8.62e-05,121870.0,121860.0,2.21590723]
[1754891469855,0.7491262,121870.0,121860.0,2.21590723]
[1754891471649,8.62e-05,121870.0,121860.0,2.38002723]
[1754891471849,0.7490862,121870.0,121860.0,2.38002723]
[1754891472852,8.62e-05,121870.0,121860.0,2.38002723]
[1754891478062,1.0978362,121870.0,121860.0,2.38002723]
[1754891478359,0.9456956,121870.0,121860.0,1.45808737]
[1754891478561,0.4808756,121870.0,121860.0,1.09728767]
[1754891478761,0.4808756,121870.0,121860.0,1.59600753]
[1754891478950,1.2297956,121870.0,121860.0,1.59600753]
[1754891479360,1.1798956,121870.0,121860.0,1.95680753]
[1754891479563,1.0978362,121870.0,121860.0,1.95680753]
[1754891480255,8.62e-05,121870.0,121860.0,1.95680753]
[1754891483259,0.3489162,121870.0,121860.0,1.95680753]
[1754891483459,0.4309756,121870.0,121860.0,1.95680753]
[1754891483665,1.1798956,121870.0,121860.0,1.95680753]
[1754891484368,0.4309756,121870.0,121860.0,1.66602767]
[1754891484566,0.4309756,121870.0,121860.0,1.95680753]
[1754891484866,8.62e-05,121870.0,121860.0,1.95680753]
[1754891485067,8.62e-05,121870.0,121860.0,1.66602767]
[1754891485268,8.62e-05,121870.0,121860.0,1.95680753]
[1754891485472,8.62e-05,121870.0,121860.0,1.66602767]
[1754891485660,8.62e-05,121870.0,121860.0,1.95680753]
[1754891485861,0.4309756,121870.0,121860.0,1.95680753]
[1754891486570,1.1798956,121870.0,121860.0,1.95680753]
[1754891486969,1.0978362,121870.0,121860.0,1.95680753]
[1754891487570,1.1798956,121870.0,121860.0,1.95680753]
[1754891487876,1.1798956,121870.0,121860.0,2.14742853]
[1754891488171,1.0978362,121870.0,121860.0,2.14742853]
[1754891490174,1.0978362,121870.0,121860.0,2.11944867]
[1754891490374,1.0978362,121870.0,121860.0,2.41022853]
[1754891491172,0.1940462,121870.0,121860.0,2.41022853]
[1754891491373,0.7489662,121870.0,121860.0,2.41022853]
[1754891491574,0.7489662,121870.0,121860.0,2.21960753]
[1754891491774,0.7489662,121870.0,121860.0,2.41132292]
[1754891492880,0.7489662,121870.0,121860.0,2.21960753]
[1754891495684,0.7489662,121870.0,121860.0,2.41134894]
[1754891496685,0.7489662,121870.0,121860.0,2.12056908]
[1754891496887,0.7489662,121870.0,121860.0,2.21960753]
[1754891497087,0.8597162,121870.0,121860.0,2.21960753]
[1754891497488,0.9281262,121870.0,121860.0,2.21960753]
[1754891497685,0.2583062,121870.0,121860.0,2.21960753]
[1754891497888,1.0962862,121870.0,121860.0,2.21960753]
[1754891500586,0.92893426,121870.0,121860.0,2.21960753]
[1754891500891,0.82794,121870.0,121860.0,2.21960753]
[1754891501383,0.82794,121870.0,121860.0,2.45563802]
[1754891501989,0.74888,121870.0,121860.0,2.45563802]
[1754891503391,0.74888,121870.0,121860.0,2.21960753]
[1754891503785,0.33791745,121890.0,121880.0,0.13454]
[1754891503991,0.52502595,121890.0,121880.0,0.78514014]
[1754891504190,0.52502595,121890.0,121880.0,0.99855053]
[1754891504390,1.27386595,121890.0,121880.0,1.27238377]
[1754891504692,1.5127831,121900.0,121890.0,0.4942558]
[1754891504900,2.1795792,121900.0,121890.0,1.14583566]
[1754891505084,1.4307392,121900.0,121890.0,1.36415409]
[1754891505284,1.30349,121900.0,121890.0,1.44619864]
[1754891505496,0.543118,121910.0,121900.0,0.4942491]
[1754891505789,0.543118,121910.0,121900.0,1.26964309]
[1754891505790,1.337168,121910.0,121900.0,1.26964309]
[1754891505998,1.2099191,121910.0,121900.0,1.36372652]
[1754891506200,1.2099191,121910.0,121900.0,1.44576433]
[1754891506496,1.2551291,121910.0,121900.0,1.44576433]
[1754891507492,1.2551291,121910.0,121900.0,1.44676433]
[1754891507897,1.2553291,121910.0,121900.0,1.15598447]
[1754891508200,1.1732967,121910.0,121900.0,1.44676433]
[1754891508495,0.4195889,121930.0,121920.0,0.2165656]
[1754891508690,1.2180389,121930.0,121920.0,1.33723795]
[1754891508994,1.2180389,121930.0,121920.0,1.54571119]
[1754891509194,0.4647989,121930.0,121920.0,1.62774227]
[1754891509395,1.2179989,121930.0,121920.0,1.62774227]
[1754891509590,1.2179989,121930.0,121920.0,1.33696241]
[1754891509784,1.25849138,121930.0,121920.0,1.62774227]
[1754891510394,1.26049138,121930.0,121920.0,1.62774227]
[1754891510990,1.26049138,121930.0,121920.0,1.43631978]
[1754891511196,1.26049138,121930.0,121920.0,1.50165444]
[1754891511397,0.04249248,121930.0,121920.0,1.50165444]
[1754891511594,1.21492148,121930.0,121920.0,1.64870131]
[1754891512000,1.21488148,121930.0,121920.0,1.78790131]
[1754891512200,1.21488148,121930.0,121920.0,2.14870131]
[1754891512401,0.46208148,121930.0,121920.0,1.71093616]
[1754891512701,1.25997148,121930.0,121920.0,1.35013616]
[1754891512900,0.50729148,121930.0,121920.0,1.64091602]
[1754891513100,1.26037148,121930.0,121920.0,1.64091602]
[1754891513298,1.26053148,121930.0,121920.0,1.64091602]
[1754891513496,1.26053148,121930.0,121920.0,1.35013616]
[1754891513697,1.62129148,121930.0,121920.0,0.98581626]
[1754891513896,0.86809148,121930.0,121920.0,0.98581626]
[1754891514202,1.62129148,121930.0,121920.0,1.11536626]
[1754891514495,1.62129148,121930.0,121920.0,1.35013626]
[1754891514700,1.62129148,121930.0,121920.0,1.49712155]
[1754891515399,1.62129148,121930.0,121920.0,1.21666585]
[1754891515704,1.15887134,121930.0,121920.0,0.85590056]
[1754891516001,1.15887134,121930.0,121920.0,0.70454653]
[1754891516302,2.07622334,121930.0,121920.0,0.55354653]
[1754891516504,1.32290334,121930.0,121920.0,0.1759689]
[1754891516802,0.24190148,121930.0,121920.0,1.05291262]
[1754891516991,0.24190148,121930.0,121920.0,0.51583276]
[1754891517198,0.99518148,121930.0,121920.0,0.64538276]
[1754891517395,0.99518148,121930.0,121920.0,0.69325276]
[1754891517597,0.99518148,121930.0,121920.0,0.76213276]
[1754891519205,0.24190148,121930.0,121920.0,0.76213276]
[1754891519406,0.99486148,121930.0,121920.0,0.69325266]
[1754891519707,0.99486148,121930.0,121920.0,0.56370266]
[1754891519905,0.99486148,121930.0,121920.0,0.63000179]
[1754891520106,0.24190148,121930.0,121920.0,0.63000179]
[1754891520408,0.99474148,121930.0,121920.0,0.75955179]
[1754891520608,0.99474148,121930.0,121920.0,0.82843179]
[1754891520810,0.99470148,121930.0,121920.0,0.82843179]
[1754891521609,0.99470148,121930.0,121920.0,0.75955179]
[1754891522209,0.24190148,121930.0,121920.0,0.58213179]
[1754891522410,0.99458148,121930.0,121920.0,0.58213179]
[1754891522711,0.24190148,121930.0,121920.0,0.82843179]
[1754891522905,0.53268134,121930.0,121920.0,0.58213179]
[1754891523211,0.99442148,121930.0,121920.0,0.49546179]
[1754891523414,0.99442148,121930.0,121920.0,0.26789706]
[1754891523709,0.99442148,121930.0,121920.0,0.13216274]
[1754891523710,1.10751334,121930.0,121920.0,0.13216274]
[1754891523912,1.10751334,121930.0,121920.0,0.21418037]
[1754891524112,1.86019334,121930.0,121920.0,0.3372775]
[1754891524413,1.86019334,121930.0,121920.0,0.20511476]
[1754891524610,1.86019334,121930.0,121920.0,0.20518449]
[1754891525016,1.86015334,121930.0,121920.0,0.20518449]
[1754891525714,1.10551334,121930.0,121920.0,0.20518449]
[1754891526012,1.86195334,121930.0,121920.0,0.20518449]
[1754891526316,1.86395334,121930.0,121920.0,0.20518449]
[1754891527615,1.11151334,121930.0,121920.0,0.18083009]
[1754891527818,1.06151334,121930.0,121920.0,0.23049009]
[1754891528222,0.60670148,121930.0,121920.0,0.60968009]
[1754891528424,1.35890148,121930.0,121920.0,0.60968009]
[1754891528715,0.60670148,121930.0,121920.0,0.69170569]
[1754891529015,0.48931148,121930.0,121920.0,0.98248555]
[1754891529319,0.87959148,121930.0,121920.0,1.26551384]
[1754891529514,0.8351788,121930.0,121920.0,1.62631384]
[1754891529718,0.8371788,121930.0,121920.0,1.86234433]
[1754891530416,0.8371788,121930.0,121920.0,1.67092184]
[1754891530616,0.8361788,121930.0,121920.0,1.67092184]
[1754891530914,0.0840188,121930.0,121920.0,2.17092184]
[1754891531221,0.8360988,121930.0,121920.0,2.17092184]
[1754891531717,0.8360988,121930.0,121920.0,1.93489135]
[1754891531915,0.0830188,121930.0,121920.0,1.93489135]
[1754891532418,0.8349788,121930.0,121920.0,1.93489135]
[1754891533917,1.12575866,121930.0,121920.0,1.42533589]
[1754891534116,1.48659866,121930.0,121920.0,0.89885009]
[1754891534319,0.73459866,121930.0,121920.0,0.39885009]
[1754891534620,1.48659866,121930.0,121920.0,0.39885009]
[1754891534818,1.48655866,121930.0,121920.0,0.39885009]
[1754891535019,1.48651866,121930.0,121920.0,0.39885009]
[1754891535324,1.48651866,121930.0,121920.0,0.80087253]
[1754891535514,1.48647866,121930.0,121920.0,0.80087253]
[1754891535917,0.8348988,121930.0,121920.0,0.88289803]
[1754891536323,1.1955788,121930.0,121920.0,0.80087253]
[1754891536719,1.53601529,121930.0,121920.0,0.80087253]
[1754891537829,1.53601529,121930.0,121920.0,0.72679253]
[1754891538125,0.8348988,121930.0,121920.0,1.24369813]
[1754891538324,0.0830188,121930.0,121920.0,1.33834304]
[1754891538524,0.8349388,121930.0,121920.0,1.33834304]
[1754891539121,0.8349388,121930.0,121920.0,0.97754304]
[1754891539318,0.8348588,121930.0,121920.0,0.97754304]
[1754891539722,0.8348588,121930.0,121920.0,0.89551744]
[1754891540123,1.1955388,121930.0,121920.0,0.89551744]
[1754891540324,0.4438188,121930.0,121920.0,0.89551744]
[1754891540523,1.1955388,121930.0,121920.0,0.89551744]
[1754891541224,0.4438188,121930.0,121920.0,0.89551744]
[1754891541425,1.1954988,121930.0,121920.0,0.704325]
[1754891541726,1.1954188,121930.0,121920.0,0.704325]
[1754891542624,1.1952588,121930.0,121920.0,0.89551744]
[1754891543515,0.4438188,121930.0,121920.0,0.89551744]
[1754891543720,1.1951788,121930.0,121920.0,0.89551744]
[1754891544527,1.1950588,121930.0,121920.0,0.89551744]
[1754891546425,1.1949388,121930.0,121920.0,0.89551744]
[1754891547327,1.1949388,121930.0,121920.0,0.704325]
[1754891549228,0.4438188,121930.0,121920.0,0.704325]
[1754891549425,1.1945388,121930.0,121920.0,0.704325]
[1754891549628,1.1949788,121930.0,121920.0,0.7863502]
[1754891549827,1.1949788,121930.0,121920.0,0.97754264]
[1754891550125,0.4438188,121930.0,121920.0,0.97754264]
[1754891550431,1.1949788,121930.0,121920.0,0.97754264]
[1754891550731,1.1949788,121930.0,121920.0,0.89551744]
[1754891553330,1.1946588,121930.0,121920.0,0.89551744]
[1754891553530,1.1946588,121930.0,121920.0,0.704325]
[1754891556034,0.4438188,121930.0,121920.0,0.704325]
[1754891556235,1.48511203,121930.0,121920.0,0.704325]
[1754891557137,1.48511203,121930.0,121920.0,0.89585937]
[1754891558130,0.73435203,121930.0,121920.0,0.46700937]
[1754891558430,0.73435203,121930.0,121920.0,0.42021446]
[1754891558629,1.48491203,121930.0,121920.0,0.42021446]
[1754891558838,1.48491203,121930.0,121920.0,0.37236446]
[1754891559232,1.48491203,121930.0,121920.0,0.42021446]
[1754891559438,1.48491203,121930.0,121920.0,0.22868009]
[1754891561534,1.48491203,121930.0,121920.0,0.18083009]
[1754891564733,1.64894403,121930.0,121920.0,0.18083009]
[1754891565239,1.18891726,121930.0,121920.0,0.14573961]
[1754891565434,1.64826403,121930.0,121920.0,0.14573961]
[1754891566934,0.89838403,121930.0,121920.0,0.19358961]
[1754891567134,1.48411203,121930.0,121920.0,0.48607961]
[1754891567330,1.48411203,121930.0,121920.0,0.55467961]
[1754891567538,1.48407203,121930.0,121920.0,0.55467961]
[1754891567740,0.4438188,121930.0,121920.0,0.55467961]
[1754891567935,1.1934988,121930.0,121920.0,0.55467961]
[1754891570540,0.4438188,121930.0,121920.0,0.55467961]
[1754891570843,1.1932188,121930.0,121920.0,0.55467961]
[1754891571543,1.48375203,121930.0,121920.0,0.55467961]
[1754891573436,1.48375203,121930.0,121920.0,0.48607961]
[1754891573844,1.48375203,121930.0,121920.0,0.36246961]
[1754891574038,1.48375203,121930.0,121920.0,0.55467961]
[1754891574239,1.48399203,121930.0,121920.0,0.55467961]
[1754891577748,1.48359203,121930.0,121920.0,0.55467961]
[1754891579945,1.1930588,121930.0,121920.0,0.55467961]
[1754891580446,1.48359203,121930.0,121920.0,0.55467961]
[1754891582342,1.48359203,121930.0,121920.0,0.74621398]
[1754891584249,1.1930588,121930.0,121920.0,0.74621398]
[1754891584550,0.4438188,121930.0,121920.0,1.11877231]
[1754891584848,0.0830188,121930.0,121920.0,1.37340404]
[1754891585049,0.8322188,121930.0,121920.0,1.37340404]
[1754891585441,0.0830184,121930.0,121920.0,1.37340404]
[1754891585646,0.8322184,121930.0,121920.0,1.37340404]
[1754891585846,0.8322184,121930.0,121920.0,1.87340404]
[1754891586050,0.7502,121930.0,121920.0,1.87340404]
[1754891586240,0.8322184,121930.0,121920.0,1.87340404]
[1754891587251,1.42085199,121940.0,121930.0,0.4874584]
[1754891587446,1.03639241,121940.0,121930.0,1.13879163]
[1754891587652,1.03639241,121940.0,121930.0,1.35456357]
[1754891588049,1.03639241,121940.0,121930.0,1.43657447]
[1754891588547,0.31960241,121940.0,121930.0,0.78524124]
[1754891588755,1.40831564,121940.0,121930.0,0.78524124]
[1754891588951,1.11778241,121940.0,121930.0,0.78524124]
[1754891589252,1.11778241,121940.0,121930.0,1.28524124]
[1754891589253,0.65915564,121940.0,121930.0,1.28524124]
[1754891589444,1.07176241,121940.0,121930.0,1.28524124]
[1754891591145,0.20817371,121940.0,121930.0,1.93657447]
[1754891591356,0.95729371,121940.0,121930.0,1.93657447]
[1754891592043,0.95729371,121940.0,121930.0,2.12809352]
[1754891593250,0.95729371,121940.0,121930.0,1.93657447]
[1754891593854,0.20817371,121940.0,121930.0,1.93657447]
[1754891594156,0.95729371,121940.0,121930.0,1.93657447]
[1754891594357,0.95729371,121940.0,121930.0,2.12778417]
[1754891596852,0.95729371,121940.0,121930.0,1.93657447]
[1754891598856,0.003,121940.0,121930.0,1.93657447]
[1754891599055,0.164,121960.0,121950.0,0.4874449]
[1754891599257,0.91308,121960.0,121950.0,1.13886411]
[1754891599452,0.95432319,121960.0,121950.0,1.05779232]
[1754891599657,0.98673319,121960.0,121950.0,1.05779232]
[1754891599856,0.98673319,121960.0,121950.0,1.13980322]
[1754891600258,0.98673319,121960.0,121950.0,1.33098364]
[1754891601154,0.98873319,121960.0,121950.0,1.83098364]
[1754891601363,0.99073319,121960.0,121950.0,1.83098364]
[1754891603458,1.03675319,121960.0,121950.0,1.83098364]
[1754891603667,1.03675319,121960.0,121950.0,1.27900322]
[1754891603963,0.53218642,121960.0,121950.0,1.27900322]
[1754891604163,0.57820642,121960.0,121950.0,1.1920829]
[1754891604358,1.32720642,121960.0,121950.0,1.1920829]
[1754891604763,0.57820642,121960.0,121950.0,1.1920829]
[1754891604964,1.32720642,121960.0,121950.0,1.1920829]
[1754891605956,0.93900642,121960.0,121950.0,0.7046379]
[1754891606156,1.97849965,121960.0,121950.0,0.7046379]
[1754891606362,0.93900642,121960.0,121950.0,0.7046379]